[Event "Late-Titled-Tuesday-Blitz-September-12-2023"]
[Site "Chess.com"]
[Date "2023.09.12"]
[Round "10"]
[White "The_Princess_Moon"]
[Black "F-Ghaith2021"]
[Result "0-1"]
[WhiteElo "2286"]
[BlackElo "2391"]
[TimeControl "180+1"]
[EndTime "15:53:06 PDT"]
[Termination "F-Ghaith2021 won on time"]

1. e4 {[%clk 0:03:00.9]} 1... c6 {[%clk 0:02:58.8]} 2. d4 {[%clk 0:02:58.4]}
2... d5 {[%clk 0:02:57]} 3. exd5 {[%clk 0:02:58.8]} 3... cxd5 {[%clk 0:02:55.3]}
4. Bd3 {[%clk 0:02:59.7]} 4... Nf6 {[%clk 0:02:54]} 5. c3 {[%clk 0:02:59.7]}
5... Nc6 {[%clk 0:02:53.7]} 6. h3 {[%clk 0:03:00]} 6... e5 {[%clk 0:02:53.5]} 7.
dxe5 {[%clk 0:03:00]} 7... Nxe5 {[%clk 0:02:54.4]} 8. Bb5+ {[%clk 0:03:00.4]}
8... Bd7 {[%clk 0:02:48.8]} 9. Bxd7+ {[%clk 0:02:59.7]} 9... Qxd7 {[%clk
0:02:46.3]} 10. Nf3 {[%clk 0:03:00.6]} 10... Bd6 {[%clk 0:02:42.6]} 11. O-O
{[%clk 0:02:56.8]} 11... O-O {[%clk 0:02:39]} 12. Nxe5 {[%clk 0:02:55.5]} 12...
Bxe5 {[%clk 0:02:39]} 13. Re1 {[%clk 0:02:56.2]} 13... Rfe8 {[%clk 0:02:19.3]}
14. Bg5 {[%clk 0:02:55]} 14... Qf5 {[%clk 0:01:54.1]} 15. Bxf6 {[%clk
0:02:44.7]} 15... Bxf6 {[%clk 0:01:48]} 16. Nd2 {[%clk 0:02:41.1]} 16... d4
{[%clk 0:01:45.5]} 17. cxd4 {[%clk 0:02:35.7]} 17... Bxd4 {[%clk 0:01:46.4]} 18.
Qf3 {[%clk 0:02:31.1]} 18... Qxf3 {[%clk 0:01:43.5]} 19. Nxf3 {[%clk 0:02:32]}
19... Bxb2 {[%clk 0:01:41]} 20. Rab1 {[%clk 0:02:28.7]} 20... Rxe1+ {[%clk
0:01:40.3]} 21. Nxe1 {[%clk 0:02:27.4]} 21... Bc3 {[%clk 0:01:40.1]} 22. Nc2
{[%clk 0:02:22.8]} 22... Rb8 {[%clk 0:01:30.1]} 23. Rd1 {[%clk 0:02:20.7]} 23...
a5 {[%clk 0:01:21.4]} 24. Rd3 {[%clk 0:02:13.2]} 24... Bf6 {[%clk 0:01:18.8]}
25. Rd7 {[%clk 0:02:01.3]} 25... b5 {[%clk 0:01:15.2]} 26. Ra7 {[%clk
0:01:59.8]} 26... Bc3 {[%clk 0:01:10.7]} 27. Kf1 {[%clk 0:01:53.4]} 27... h6
{[%clk 0:01:10.5]} 28. Ke2 {[%clk 0:01:51.6]} 28... b4 {[%clk 0:01:10]} 29. Kd3
{[%clk 0:01:37.8]} 29... Rd8+ {[%clk 0:01:09.3]} 30. Kc4 {[%clk 0:01:35.3]}
30... Rd2 {[%clk 0:01:09.1]} 31. Kb3 {[%clk 0:01:33.3]} 31... Rxf2 {[%clk
0:01:04]} 32. Rxa5 {[%clk 0:01:32.7]} 32... Rxg2 {[%clk 0:00:57.5]} 33. Nxb4
{[%clk 0:01:30.6]} 33... Be1 {[%clk 0:00:54.7]} 34. Ra8+ {[%clk 0:01:27.4]}
34... Kh7 {[%clk 0:00:54.3]} 35. Nd3 {[%clk 0:01:21]} 35... Bh4 {[%clk 0:00:44]}
36. a4 {[%clk 0:01:13.1]} 36... Rg6 {[%clk 0:00:32]} 37. a5 {[%clk 0:01:08.1]}
37... Rd6 {[%clk 0:00:32.1]} 38. Kc4 {[%clk 0:01:06.5]} 38... Rc6+ {[%clk
0:00:31.8]} 39. Kd5 {[%clk 0:01:05]} 39... Rc3 {[%clk 0:00:31.7]} 40. Ne5 {[%clk
0:00:56.5]} 40... f5 {[%clk 0:00:29.8]} 41. Nd7 {[%clk 0:00:45.3]} 41... Bf2
{[%clk 0:00:29.5]} 42. Nf8+ {[%clk 0:00:43]} 42... Kg8 {[%clk 0:00:27]} 43. Ne6+
{[%clk 0:00:39.7]} 43... Kf7 {[%clk 0:00:26.9]} 44. Rf8+ {[%clk 0:00:24.2]}
44... Kg6 {[%clk 0:00:20.4]} 45. Nf4+ {[%clk 0:00:23.7]} 45... Kg5 {[%clk
0:00:18.1]} 46. Ne6+ {[%clk 0:00:23.3]} 46... Kg6 {[%clk 0:00:18.5]} 47. Nf4+
{[%clk 0:00:21.6]} 47... Kh7 {[%clk 0:00:18.8]} 48. Rxf5 {[%clk 0:00:17.4]}
48... Rc5+ {[%clk 0:00:17.6]} 49. Ke6 {[%clk 0:00:17.2]} 49... Rc6+ {[%clk
0:00:17.8]} 50. Kd7 {[%clk 0:00:17.1]} 50... Ra6 {[%clk 0:00:17.5]} 51. Ne6
{[%clk 0:00:16.5]} 51... Be1 {[%clk 0:00:17.8]} 52. Nc5 {[%clk 0:00:15.9]} 52...
Rxa5 {[%clk 0:00:17.6]} 53. Ke6 {[%clk 0:00:15]} 53... Bb4 {[%clk 0:00:17.7]}
54. Nd7 {[%clk 0:00:14.5]} 54... Ra6+ {[%clk 0:00:17.9]} 55. Kf7 {[%clk
0:00:13.2]} 55... Ra7 {[%clk 0:00:18.1]} 56. Ke6 {[%clk 0:00:13.5]} 56... Ra6+
{[%clk 0:00:18.2]} 57. Kf7 {[%clk 0:00:13.4]} 57... Ra7 {[%clk 0:00:18.4]} 58.
Ke6 {[%clk 0:00:12.7]} 58... Kg6 {[%clk 0:00:19.3]} 59. Rd5 {[%clk 0:00:12.4]}
59... Ra6+ {[%clk 0:00:19.4]} 60. Ke5 {[%clk 0:00:12]} 60... Bc3+ {[%clk
0:00:19.8]} 61. Ke4 {[%clk 0:00:12.2]} 61... Ra4+ {[%clk 0:00:19.5]} 62. Kd3
{[%clk 0:00:12.5]} 62... Ba1 {[%clk 0:00:19.5]} 63. Ne5+ {[%clk 0:00:12.7]}
63... Bxe5 {[%clk 0:00:18.4]} 64. Rxe5 {[%clk 0:00:12.7]} 64... Ra3+ {[%clk
0:00:19.3]} 65. Ke4 {[%clk 0:00:12.4]} 65... Rxh3 {[%clk 0:00:20.2]} 66. Kf4
{[%clk 0:00:12.7]} 66... Rh5 {[%clk 0:00:19.2]} 67. Re6+ {[%clk 0:00:12.5]}
67... Kf7 {[%clk 0:00:19.7]} 68. Rb6 {[%clk 0:00:12.5]} 68... Rc5 {[%clk
0:00:20]} 69. Rb7+ {[%clk 0:00:12.2]} 69... Kg8 {[%clk 0:00:20.4]} 70. Rb6
{[%clk 0:00:13.1]} 70... Kh7 {[%clk 0:00:20.6]} 71. Kg4 {[%clk 0:00:13.5]} 71...
Rc4+ {[%clk 0:00:20.8]} 72. Kf5 {[%clk 0:00:13.1]} 72... Rc5+ {[%clk 0:00:21]}
73. Kg4 {[%clk 0:00:13.3]} 73... Rc8 {[%clk 0:00:21.9]} 74. Kh4 {[%clk
0:00:13.5]} 74... Rf8 {[%clk 0:00:22.5]} 75. Kg4 {[%clk 0:00:13.8]} 75... Rf6
{[%clk 0:00:23.4]} 76. Rb7 {[%clk 0:00:13.8]} 76... Kg6 {[%clk 0:00:24.3]} 77.
Rb5 {[%clk 0:00:13.6]} 77... Re6 {[%clk 0:00:23.1]} 78. Ra5 {[%clk 0:00:13.5]}
78... Kf6 {[%clk 0:00:23.6]} 79. Rf5+ {[%clk 0:00:13]} 79... Kg6 {[%clk
0:00:23.3]} 80. Ra5 {[%clk 0:00:13.9]} 80... Re4+ {[%clk 0:00:23.3]} 81. Kf3
{[%clk 0:00:13.7]} 81... Rb4 {[%clk 0:00:23.9]} 82. Kg3 {[%clk 0:00:13.8]} 82...
h5 {[%clk 0:00:23.7]} 83. Kh3 {[%clk 0:00:13.1]} 83... Kh6 {[%clk 0:00:24.1]}
84. Kg3 {[%clk 0:00:13]} 84... g5 {[%clk 0:00:24.4]} 85. Ra6+ {[%clk 0:00:13.3]}
85... Kg7 {[%clk 0:00:24.7]} 86. Kf3 {[%clk 0:00:13.6]} 86... Rb3+ {[%clk
0:00:24.6]} 87. Ke4 {[%clk 0:00:12.8]} 87... h4 {[%clk 0:00:24.9]} 88. Kf5
{[%clk 0:00:11.9]} 88... Rg3 {[%clk 0:00:24.9]} 89. Ra7+ {[%clk 0:00:09.8]}
89... Kf8 {[%clk 0:00:25.5]} 90. Kf6 {[%clk 0:00:09.1]} 90... Ke8 {[%clk
0:00:25.9]} 91. Re7+ {[%clk 0:00:04.8]} 91... Kd8 {[%clk 0:00:25.5]} 92. Rh7
{[%clk 0:00:05.3]} 92... Kc8 {[%clk 0:00:23.8]} 93. Ke6 {[%clk 0:00:05.2]} 93...
Kd8 {[%clk 0:00:23.8]} 94. Kf6 {[%clk 0:00:05.3]} 94... Kc8 {[%clk 0:00:24.3]}
95. Ke6 {[%clk 0:00:05.7]} 95... Kb8 {[%clk 0:00:24.9]} 96. Kf5 {[%clk 0:00:06]}
96... Ka8 {[%clk 0:00:23.9]} 97. Kf6 {[%clk 0:00:06.5]} 97... Kb8 {[%clk
0:00:24.1]} 98. Ke6 {[%clk 0:00:06.8]} 98... h3 {[%clk 0:00:24.5]} 99. Kf5
{[%clk 0:00:06.3]} 99... Kc8 {[%clk 0:00:24.5]} 100. Ke4 {[%clk 0:00:05.6]}
100... Kd8 {[%clk 0:00:24.9]} 101. Kf5 {[%clk 0:00:05.8]} 101... Ke8 {[%clk
0:00:25.3]} 102. Kg6 {[%clk 0:00:05.3]} 102... Kf8 {[%clk 0:00:25.1]} 103. Kf6
{[%clk 0:00:05.6]} 103... Kg8 {[%clk 0:00:25.3]} 104. Rg7+ {[%clk 0:00:05.9]}
104... Kh8 {[%clk 0:00:25.3]} 105. Rd7 {[%clk 0:00:05.8]} 105... Kg8 {[%clk
0:00:22]} 106. Rg7+ {[%clk 0:00:05.3]} 106... Kf8 {[%clk 0:00:22.3]} 107. Rh7
{[%clk 0:00:05.5]} 107... Ke8 {[%clk 0:00:20.4]} 108. Ke6 {[%clk 0:00:05.2]}
108... Kd8 {[%clk 0:00:19.9]} 109. Kd6 {[%clk 0:00:05.5]} 109... Kc8 {[%clk
0:00:19.9]} 110. Kc6 {[%clk 0:00:06]} 110... Rc3+ {[%clk 0:00:20.1]} 111. Kd6
{[%clk 0:00:06.2]} 111... g4 {[%clk 0:00:21]} 112. Ke5 {[%clk 0:00:06.3]} 112...
Rg3 {[%clk 0:00:20.8]} 113. Kf4 {[%clk 0:00:06.5]} 113... Rg2 {[%clk 0:00:21.4]}
114. Rh4 {[%clk 0:00:06.5]} 114... h2 {[%clk 0:00:21.4]} 115. Rh7 {[%clk
0:00:05.9]} 115... Kd8 {[%clk 0:00:21.7]} 116. Ke4 {[%clk 0:00:05.4]} 116... g3
{[%clk 0:00:21.3]} 117. Kf3 {[%clk 0:00:05.8]} 117... Rg1 {[%clk 0:00:21.7]}
118. Kg4 {[%clk 0:00:05.5]} 118... h1=Q {[%clk 0:00:21.6]} 0-1

[Event "Late-Titled-Tuesday-Blitz-September-12-2023"]
[Site "Chess.com"]
[Date "2023.09.12"]
[Round "10"]
[White "Francisco_Ferrari"]
[Black "Jenia84"]
[Result "1/2-1/2"]
[WhiteElo "2246"]
[BlackElo "2376"]
[TimeControl "180+1"]
[EndTime "15:53:07 PDT"]
[Termination "Game drawn - insufficient material"]

1. e4 {[%clk 0:02:59.9]} 1... c5 {[%clk 0:02:59.2]} 2. Nf3 {[%clk 0:02:58.9]}
2... d6 {[%clk 0:02:59.4]} 3. d4 {[%clk 0:02:55.8]} 3... cxd4 {[%clk 0:02:59.5]}
4. Nxd4 {[%clk 0:02:56.7]} 4... Nf6 {[%clk 0:02:59.6]} 5. Nc3 {[%clk 0:02:57]}
5... a6 {[%clk 0:03:00]} 6. h3 {[%clk 0:02:54.5]} 6... e5 {[%clk 0:02:59.2]} 7.
Nf3 {[%clk 0:02:54.5]} 7... Be7 {[%clk 0:02:59.6]} 8. g4 {[%clk 0:02:54.4]} 8...
Be6 {[%clk 0:02:59.5]} 9. g5 {[%clk 0:02:41.1]} 9... Nfd7 {[%clk 0:02:58.7]} 10.
h4 {[%clk 0:02:39.3]} 10... Nc6 {[%clk 0:02:58.2]} 11. Be3 {[%clk 0:02:36.2]}
11... b5 {[%clk 0:02:57.7]} 12. Nd5 {[%clk 0:02:34.3]} 12... Nc5 {[%clk
0:02:47.5]} 13. Bxc5 {[%clk 0:02:20.9]} 13... dxc5 {[%clk 0:02:46.8]} 14. c4
{[%clk 0:02:21.1]} 14... Qa5+ {[%clk 0:02:28]} 15. Qd2 {[%clk 0:02:13.1]} 15...
Qxd2+ {[%clk 0:02:27.5]} 16. Kxd2 {[%clk 0:02:14]} 16... O-O-O {[%clk
0:02:22.6]} 17. Ke3 {[%clk 0:02:04.5]} 17... Bxd5 {[%clk 0:02:05.3]} 18. cxd5
{[%clk 0:02:03]} 18... Nd4 {[%clk 0:02:04.5]} 19. Nxe5 {[%clk 0:01:42]} 19...
Nc2+ {[%clk 0:02:03.8]} 20. Kd2 {[%clk 0:01:41.4]} 20... Nxa1 {[%clk 0:02:03.4]}
21. Bh3+ {[%clk 0:01:37.3]} 21... Kb7 {[%clk 0:01:50.3]} 22. Rxa1 {[%clk
0:01:31.7]} 22... Rhf8 {[%clk 0:01:39.8]} 23. Nc6 {[%clk 0:01:31.7]} 23... Rde8
{[%clk 0:01:37]} 24. Bd7 {[%clk 0:01:31.5]} 24... Bxg5+ {[%clk 0:01:29.9]} 25.
hxg5 {[%clk 0:01:26.9]} 25... Rxe4 {[%clk 0:01:30.4]} 26. Kd3 {[%clk 0:01:07.9]}
26... Rf4 {[%clk 0:01:29]} 27. Ke3 {[%clk 0:01:00.8]} 27... Rh4 {[%clk
0:01:19.3]} 28. Kf3 {[%clk 0:00:44.4]} 28... Kc7 {[%clk 0:01:18.8]} 29. Bg4
{[%clk 0:00:44.3]} 29... f5 {[%clk 0:01:07.1]} 30. gxf6 {[%clk 0:00:37.2]} 30...
Rxf6+ {[%clk 0:01:07.1]} 31. Kg3 {[%clk 0:00:37.6]} 31... Rhh6 {[%clk
0:01:05.4]} 32. Re1 {[%clk 0:00:32.3]} 32... Kd6 {[%clk 0:01:00.9]} 33. Re6+
{[%clk 0:00:20]} 33... Kxd5 {[%clk 0:00:58.1]} 34. Ne7+ {[%clk 0:00:17.7]} 34...
Kc4 {[%clk 0:00:52.4]} 35. Be2+ {[%clk 0:00:13.8]} 35... Kd4 {[%clk 0:00:44.3]}
36. Nc6+ {[%clk 0:00:11.6]} 36... Kd5 {[%clk 0:00:42.5]} 37. Rxf6 {[%clk
0:00:09.1]} 37... Rxf6 {[%clk 0:00:41.5]} 38. Ne7+ {[%clk 0:00:09.3]} 38... Kd6
{[%clk 0:00:36]} 39. Nc8+ {[%clk 0:00:07.6]} 39... Kc7 {[%clk 0:00:34.7]} 40.
Ne7 {[%clk 0:00:07.3]} 40... Re6 {[%clk 0:00:33.1]} 41. Nd5+ {[%clk 0:00:05.9]}
41... Kd6 {[%clk 0:00:32.6]} 42. Nf4 {[%clk 0:00:06.8]} 42... Re4 {[%clk
0:00:31.3]} 43. Kf3 {[%clk 0:00:06.2]} 43... Rb4 {[%clk 0:00:28.7]} 44. b3
{[%clk 0:00:06.8]} 44... c4 {[%clk 0:00:26.6]} 45. bxc4 {[%clk 0:00:05.8]} 45...
bxc4 {[%clk 0:00:27]} 46. Ke3 {[%clk 0:00:06.5]} 46... g5 {[%clk 0:00:25.4]} 47.
Nh3 {[%clk 0:00:05.4]} 47... h6 {[%clk 0:00:24.9]} 48. Kd4 {[%clk 0:00:05]}
48... Ra4 {[%clk 0:00:24.5]} 49. Bxc4 {[%clk 0:00:04.8]} 49... Ra3 {[%clk
0:00:21.9]} 50. Ng1 {[%clk 0:00:04]} 50... h5 {[%clk 0:00:20.9]} 51. Ne2 {[%clk
0:00:04.5]} 51... h4 {[%clk 0:00:20.5]} 52. Bd3 {[%clk 0:00:04.8]} 52... h3
{[%clk 0:00:19.7]} 53. Ng3 {[%clk 0:00:04.9]} 53... h2 {[%clk 0:00:19]} 54. Be4
{[%clk 0:00:05.4]} 54... Rxa2 {[%clk 0:00:19.1]} 55. Nf5+ {[%clk 0:00:04.6]}
55... Ke6 {[%clk 0:00:18.2]} 56. Ne3 {[%clk 0:00:05.1]} 56... Ra1 {[%clk
0:00:16.3]} 57. Bd5+ {[%clk 0:00:03.2]} 57... Kd7 {[%clk 0:00:13.9]} 58. Kc5
{[%clk 0:00:03.3]} 58... h1=Q {[%clk 0:00:13.1]} 59. Bxh1 {[%clk 0:00:04.2]}
59... Rxh1 {[%clk 0:00:12.8]} 60. Nc4 {[%clk 0:00:05.1]} 60... Rh2 {[%clk
0:00:12.4]} 61. Ne5+ {[%clk 0:00:05.6]} 61... Ke8 {[%clk 0:00:12.6]} 62. Ng4
{[%clk 0:00:05.2]} 62... Rg2 {[%clk 0:00:12.8]} 63. Nf6+ {[%clk 0:00:05.8]}
63... Kf7 {[%clk 0:00:12.5]} 64. Ne4 {[%clk 0:00:06.7]} 64... Ke6 {[%clk
0:00:12.4]} 65. Kd4 {[%clk 0:00:07.2]} 65... Kf5 {[%clk 0:00:12]} 66. Ke3 {[%clk
0:00:07.1]} 66... g4 {[%clk 0:00:11.3]} 67. Nc5 {[%clk 0:00:07.1]} 67... Rg1
{[%clk 0:00:10.8]} 68. Nxa6 {[%clk 0:00:07.1]} 68... Rc1 {[%clk 0:00:09.8]} 69.
Nb8 {[%clk 0:00:06.5]} 69... Rc3+ {[%clk 0:00:09.5]} 70. Kd4 {[%clk 0:00:06.5]}
70... Rc7 {[%clk 0:00:08.9]} 71. Kd5 {[%clk 0:00:05.2]} 71... Kf4 {[%clk
0:00:07.8]} 72. Kd6 {[%clk 0:00:04.9]} 72... Rb7 {[%clk 0:00:07.9]} 73. Nc6
{[%clk 0:00:05.3]} 73... Kf3 {[%clk 0:00:08.2]} 74. Ne5+ {[%clk 0:00:05.2]}
74... Kxf2 {[%clk 0:00:08.2]} 75. Nxg4+ {[%clk 0:00:05.7]} 75... Kg3 {[%clk
0:00:08.5]} 76. Ne5 {[%clk 0:00:06.2]} 76... Rb6+ {[%clk 0:00:08.9]} 77. Kd5
{[%clk 0:00:06.6]} 77... Kf4 {[%clk 0:00:08.9]} 78. Nc4 {[%clk 0:00:06.4]} 78...
Rb5+ {[%clk 0:00:08.8]} 79. Kc6 {[%clk 0:00:07]} 79... Rb4 {[%clk 0:00:08.8]}
80. Kc5 {[%clk 0:00:07.9]} 80... Rb1 {[%clk 0:00:08.5]} 81. Kd4 {[%clk 0:00:08]}
81... Rc1 {[%clk 0:00:08.9]} 82. Nd2 {[%clk 0:00:07.7]} 82... Rd1 {[%clk
0:00:08.8]} 83. Kd3 {[%clk 0:00:08.1]} 83... Ra1 {[%clk 0:00:08.4]} 84. Nb3
{[%clk 0:00:07.1]} 84... Ra3 {[%clk 0:00:08.7]} 85. Kc4 {[%clk 0:00:07.7]} 85...
Ra8 {[%clk 0:00:08.1]} 86. Nc5 {[%clk 0:00:07.5]} 86... Ke5 {[%clk 0:00:08.7]}
87. Nd3+ {[%clk 0:00:06.8]} 87... Kd6 {[%clk 0:00:09.1]} 88. Kd4 {[%clk
0:00:07.5]} 88... Rc8 {[%clk 0:00:09.6]} 89. Nf4 {[%clk 0:00:07.1]} 89... Rb8
{[%clk 0:00:10.2]} 90. Nd3 {[%clk 0:00:08]} 90... Rb3 {[%clk 0:00:10.3]} 91. Kc4
{[%clk 0:00:08.1]} 91... Ra3 {[%clk 0:00:10.3]} 92. Nb4 {[%clk 0:00:08.4]} 92...
Ra8 {[%clk 0:00:10.8]} 93. Kb5 {[%clk 0:00:08.8]} 93... Rb8+ {[%clk 0:00:10.9]}
94. Kc4 {[%clk 0:00:09.4]} 94... Rb7 {[%clk 0:00:11.2]} 95. Nd3 {[%clk
0:00:09.9]} 95... Rb6 {[%clk 0:00:10.8]} 96. Kd4 {[%clk 0:00:10.4]} 96... Rb5
{[%clk 0:00:10.3]} 97. Kc4 {[%clk 0:00:10.8]} 97... Rd5 {[%clk 0:00:09.8]} 98.
Nb4 {[%clk 0:00:11.4]} 98... Rh5 {[%clk 0:00:09.1]} 99. Kd4 {[%clk 0:00:12]}
99... Rh4+ {[%clk 0:00:09.3]} 100. Kc3 {[%clk 0:00:12.7]} 100... Kc5 {[%clk
0:00:09.6]} 101. Nd3+ {[%clk 0:00:13.3]} 101... Kd5 {[%clk 0:00:09.9]} 102. Nb4+
{[%clk 0:00:13.5]} 102... Ke4 {[%clk 0:00:10.2]} 103. Kc4 {[%clk 0:00:11.7]}
103... Ke5+ {[%clk 0:00:10]} 104. Kc5 {[%clk 0:00:12.1]} 104... Ke6 {[%clk
0:00:10.2]} 105. Nc6 {[%clk 0:00:11.8]} 105... Rh5+ {[%clk 0:00:10.2]} 106. Kb6
{[%clk 0:00:11.1]} 106... Kd6 {[%clk 0:00:10.8]} 107. Nb4 {[%clk 0:00:09]}
107... Rh6 {[%clk 0:00:10.8]} 108. Kb5 {[%clk 0:00:09.4]} 108... Rh4 {[%clk
0:00:09.1]} 109. Na6 {[%clk 0:00:08.8]} 109... Rd4 {[%clk 0:00:06.7]} 110. Nb4
{[%clk 0:00:09.1]} 110... Re4 {[%clk 0:00:05.8]} 111. Na6 {[%clk 0:00:09.5]}
111... Kd5 {[%clk 0:00:06.1]} 112. Nb4+ {[%clk 0:00:09.1]} 112... Kd4 {[%clk
0:00:06.5]} 113. Nc6+ {[%clk 0:00:09.2]} 113... Kd5 {[%clk 0:00:06.5]} 114. Nb4+
{[%clk 0:00:09.4]} 114... Kd6 {[%clk 0:00:06.4]} 115. Na6 {[%clk 0:00:09.6]}
115... Re5+ {[%clk 0:00:05.9]} 116. Kb6 {[%clk 0:00:09.4]} 116... Re6 {[%clk
0:00:04.9]} 117. Nc5 {[%clk 0:00:08.7]} 117... Kd5+ {[%clk 0:00:04.4]} 118. Nxe6
{[%clk 0:00:08]} 1/2-1/2